[Event "Fast Chess"]
[Site "ChessKid.com"]
[Date "2020.04.09"]
[Round "1"]
[White "Dai, Lana"]
[Black "Georgiev, Maximilian"]
[Result "0-1"]
[ECO "C55"]
[WhiteElo "1248"]
[BlackElo "1409"]
[PlyCount "158"]
[EventDate "2020.??.??"]
[TimeControl "600"]
[WhiteClock "0:04:50"]
[BlackClock "0:00:06"]

1. e4 {[%emt 0:00:03]} e5 {[%emt 0:00:01]} 2. Nf3 {[%emt 0:00:02]} Nc6 {
[%emt 0:00:01]} 3. Bc4 {[%emt 0:00:03]} h6 {[%emt 0:00:01]} 4. d3 {[%emt 0:00:
03]} Nf6 {[%emt 0:00:02]} 5. a3 {[%emt 0:00:06]} Be7 {[%emt 0:00:02]} 6. Nc3 {
[%emt 0:00:02]} a6 {[%emt 0:00:05]} 7. Be3 {[%emt 0:00:08]} O-O {[%emt 0:00:02]
} 8. O-O {[%emt 0:00:03]} d6 {[%emt 0:00:02]} 9. h3 {[%emt 0:00:04]} b5 {
[%emt 0:00:03]} 10. Bd5 {[%emt 0:00:09]} Nxd5 {[%emt 0:00:03]} 11. exd5 {
[%emt 0:00:07]} Na7 {[%emt 0:00:05]} 12. Bxa7 {[%emt 0:00:03]} Rxa7 {[%emt 0:
00:01]} 13. d4 {[%emt 0:00:13]} Bb7 {[%emt 0:00:11]} 14. dxe5 {[%emt 0:00:05]}
dxe5 {[%emt 0:00:01]} 15. Nxe5 {[%emt 0:00:07]} Bf6 {[%emt 0:00:02]} 16. Re1 {
[%emt 0:00:19]} Re8 {[%emt 0:00:02]} 17. Ng4 {[%emt 0:00:09]} Bxc3 {[%emt 0:00:
04]} 18. Rxe8+ {[%emt 0:00:05]} Qxe8 {[%emt 0:00:02]} 19. bxc3 {[%emt 0:00:07]}
Qd7 {[%emt 0:00:04]} 20. Ne3 {[%emt 0:00:23]} Ra8 {[%emt 0:00:03]} 21. Rb1 {
[%emt 0:00:18]} Re8 {[%emt 0:00:04]} 22. a4 {[%emt 0:00:09]} Kf8 {[%emt 0:00:
12]} 23. axb5 {[%emt 0:00:08]} axb5 {[%emt 0:00:01]} 24. Ra1 {[%emt 0:00:19]}
Ra8 {[%emt 0:00:10]} 25. Rxa8+ {[%emt 0:00:05]} Bxa8 {[%emt 0:00:01]} 26. Qd4 {
[%emt 0:00:11]} f5 {[%emt 0:00:07]} 27. Qc5+ {[%emt 0:00:06]} Kg8 {[%emt 0:00:
04]} 28. c4 {[%emt 0:00:27]} bxc4 {[%emt 0:00:02]} 29. Qxc4 {[%emt 0:00:05]} f4
{[%emt 0:00:05]} 30. d6+ {[%emt 0:00:08]} Kh8 {[%emt 0:00:09]} 31. dxc7 {
[%emt 0:00:21]} Bb7 {[%emt 0:00:03]} 32. Qc5 {[%emt 0:00:34]} fxe3 {[%emt 0:00:
04]} 33. Qf8+ {[%emt 0:00:03]} Kh7 {[%emt 0:00:03]} 34. fxe3 {[%emt 0:00:17]}
Qxc7 {[%emt 0:00:03]} 35. Qf5+ {[%emt 0:00:01]} g6 {[%emt 0:00:05]} 36. Qf6 {
[%emt 0:00:17]} Ba8 {[%emt 0:00:09]} 37. c3 {[%emt 0:00:10]} Qb7 {[%emt 0:00:
04]} 38. e4 {[%emt 0:00:26]} h5 {[%emt 0:00:08]} 39. Qe6 {[%emt 0:00:16]} Kh6 {
[%emt 0:00:09]} 40. Qe5 {[%emt 0:00:12]} Qb1+ {[%emt 0:00:07]} 41. Kf2 {
[%emt 0:00:13]} Bxe4 {[%emt 0:00:08]} 42. Qh8+ {[%emt 0:00:08]} Kg5 {[%emt 0:
00:03]} 43. Qd8+ {[%emt 0:00:14]} Kf5 {[%emt 0:00:12]} 44. Qf8+ {[%emt 0:00:11]
} Ke5 {[%emt 0:00:11]} 45. Qe7+ {[%emt 0:00:02]} Kf4 {[%emt 0:00:06]} 46. g3+ {
[%emt 0:00:05]} Kf5 {[%emt 0:00:03]} 47. Qf7+ {[%emt 0:00:05]} Ke5 {[%emt 0:00:
06]} 48. Qe7+ {[%emt 0:00:08]} Kd5 {[%emt 0:00:03]} 49. Qd7+ {[%emt 0:00:05]}
Kc4 {[%emt 0:00:07]} 50. Qc7+ {[%emt 0:00:03]} Kb3 {[%emt 0:00:03]} 51. Qb6+ {
[%emt 0:00:04]} Kc2 {[%emt 0:00:01]} 52. Qxb1+ {[%emt 0:00:11]} Kxb1 {[%emt 0:
00:02]} 53. c4 {[%emt 0:00:01]} Kb2 {[%emt 0:00:13]} 54. c5 {[%emt 0:00:02]}
Kb3 {[%emt 0:00:03]} 55. Ke3 {[%emt 0:00:01]} Bc6 {[%emt 0:00:03]} 56. Kd4 {
[%emt 0:00:02]} Kb4 {[%emt 0:00:01]} 57. g4 {[%emt 0:00:07]} hxg4 {[%emt 0:00:
03]} 58. hxg4 {[%emt 0:00:02]} Kb5 {[%emt 0:00:06]} 59. g5 {[%emt 0:00:05]} Kb4
{[%emt 0:00:01]} 60. Ke5 {[%emt 0:00:06]} Kxc5 {[%emt 0:00:01]} 61. Kf6 {
[%emt 0:00:02]} Be8 {[%emt 0:00:01]} 62. Ke5 {[%emt 0:00:04]} Kc6 {[%emt 0:00:
05]} 63. Kf6 {[%emt 0:00:02]} Kd7 {[%emt 0:00:03]} 64. Kg7 {[%emt 0:00:08]} Ke7
{[%emt 0:00:03]} 65. Kh6 {[%emt 0:00:05]} Bf7 {[%emt 0:00:10]} 66. Kg7 {
[%emt 0:00:03]} Ke6 {[%emt 0:00:03]} 67. Kh6 {[%emt 0:00:06]} Kf5 {[%emt 0:00:
03]} 68. Kg7 {[%emt 0:00:07]} Kxg5 {[%emt 0:00:01]} 69. Kxf7 {[%emt 0:00:01]}
Kh5 {[%emt 0:00:01]} 70. Kf6 {[%emt 0:00:05]} g5 {[%emt 0:00:01]} 71. Kf5 {
[%emt 0:00:02]} Kh4 {[%emt 0:00:02]} 72. Ke4 {[%emt 0:00:04]} Kg3 {[%emt 0:00:
03]} 73. Kf5 {[%emt 0:00:02]} g4 {[%emt 0:00:01]} 74. Kg5 {[%emt 0:00:04]} Kf3
{[%emt 0:00:04]} 75. Kh4 {[%emt 0:00:02]} g3 {[%emt 0:00:06]} 76. Kh3 {[%emt 0:
00:02]} Kf2 {[%emt 0:00:01]} 77. Kh4 {[%emt 0:00:05]} g2 {[%emt 0:00:02]} 78.
Kh3 {[%emt 0:00:01]} g1=Q {[%emt 0:00:01]} 79. Kh4 {[%emt 0:00:03]} Kf3 {
[%emt 0:00:02] TallSnazzyBall won on time} 0-1

[Event "Fast Chess"]
[Site "ChessKid.com"]
[Date "2020.04.09"]
[Round "1"]
[White "Sasse, Gabriel"]
[Black "Li, Tobias"]
[Result "0-1"]
[ECO "C50"]
[WhiteElo "1263"]
[BlackElo "1244"]
[PlyCount "160"]
[EventDate "2020.??.??"]
[TimeControl "600"]
[WhiteClock "0:03:20"]
[BlackClock "0:04:22"]

1. e4 {[%emt 0:00:01]} e5 {[%emt 0:00:03]} 2. Nf3 {[%emt 0:00:00]} Nc6 {
[%emt 0:00:03]} 3. Bc4 {[%emt 0:00:00]} Bc5 {[%emt 0:00:03]} 4. h3 {[%emt 0:00:
02]} h6 {[%emt 0:00:02]} 5. Nc3 {[%emt 0:00:02]} Nf6 {[%emt 0:00:02]} 6. O-O {
[%emt 0:00:01]} O-O {[%emt 0:00:01]} 7. Ne1 {[%emt 0:00:04]} d6 {[%emt 0:00:02]
} 8. d3 {[%emt 0:00:02]} Re8 {[%emt 0:00:22]} 9. Qf3 {[%emt 0:00:03]} Be6 {
[%emt 0:00:02]} 10. Bxe6 {[%emt 0:00:03]} Rxe6 {[%emt 0:00:01]} 11. Qg3 {
[%emt 0:00:02]} a6 {[%emt 0:00:12]} 12. Bxh6 {[%emt 0:00:04]} Nh5 {[%emt 0:00:
06]} 13. Qg4 {[%emt 0:00:06]} Rxh6 {[%emt 0:00:02]} 14. Nd5 {[%emt 0:00:19]}
Nf6 {[%emt 0:00:09]} 15. Nxf6+ {[%emt 0:00:04]} Qxf6 {[%emt 0:00:11]} 16. c3 {
[%emt 0:00:08]} Rg6 {[%emt 0:00:21]} 17. Qd7 {[%emt 0:00:10]} Qd8 {[%emt 0:00:
07]} 18. Qf5 {[%emt 0:00:05]} Bb6 {[%emt 0:00:17]} 19. Nf3 {[%emt 0:00:07]} d5
{[%emt 0:00:16]} 20. Nh4 {[%emt 0:00:05]} Qxh4 {[%emt 0:00:11]} 21. Rae1 {
[%emt 0:00:06]} dxe4 {[%emt 0:00:13]} 22. dxe4 {[%emt 0:00:04]} Qg5 {[%emt 0:
00:11]} 23. Qf3 {[%emt 0:00:05]} Rd8 {[%emt 0:00:11]} 24. c4 {[%emt 0:00:08]}
Nd4 {[%emt 0:00:06]} 25. Qg4 {[%emt 0:00:24]} Qxg4 {[%emt 0:00:01]} 26. hxg4 {
[%emt 0:00:05]} Rxg4 {[%emt 0:00:01]} 27. Rd1 {[%emt 0:00:02]} Rh4 {[%emt 0:00:
12]} 28. g3 {[%emt 0:00:03]} Ne2+ {[%emt 0:00:08]} 29. Kg2 {[%emt 0:00:06]}
Rxd1 {[%emt 0:00:02]} 30. Rxd1 {[%emt 0:00:03]} Rh6 {[%emt 0:00:09]} 31. Rd8+ {
[%emt 0:00:04]} Kh7 {[%emt 0:00:04]} 32. Kf3 {[%emt 0:00:08]} Nd4+ {[%emt 0:00:
04]} 33. Kg4 {[%emt 0:00:02]} Rg6+ {[%emt 0:00:04]} 34. Kh5 {[%emt 0:00:05]} c5
{[%emt 0:00:10]} 35. Rd5 {[%emt 0:00:12]} f6 {[%emt 0:00:10]} 36. Kh4 {[%emt 0:
00:04]} Nf3+ {[%emt 0:00:09]} 37. Kh3 {[%emt 0:00:06]} Rh6+ {[%emt 0:00:07]}
38. Kg2 {[%emt 0:00:02]} Ng5 {[%emt 0:00:03]} 39. Rd6 {[%emt 0:00:05]} Ba5 {
[%emt 0:00:16]} 40. Rd7 {[%emt 0:00:03]} b6 {[%emt 0:00:05]} 41. Ra7 {[%emt 0:
00:03]} Nxe4 {[%emt 0:00:03]} 42. Rxa6 {[%emt 0:00:03]} Nd2 {[%emt 0:00:09]}
43. b3 {[%emt 0:00:08]} Rh5 {[%emt 0:00:07]} 44. f3 {[%emt 0:00:05]} Rf5 {
[%emt 0:00:02]} 45. f4 {[%emt 0:00:12]} exf4 {[%emt 0:00:02]} 46. gxf4 {
[%emt 0:00:01]} Rxf4 {[%emt 0:00:02]} 47. Kg3 {[%emt 0:00:02]} Rd4 {[%emt 0:00:
02]} 48. Kf2 {[%emt 0:00:06]} Nxc4 {[%emt 0:00:07]} 49. bxc4 {[%emt 0:00:06]}
Rd3 {[%emt 0:00:01]} 50. Ke2 {[%emt 0:00:07]} Ra3 {[%emt 0:00:03]} 51. Ra7 {
[%emt 0:00:11]} Kh6 {[%emt 0:00:03]} 52. Kf2 {[%emt 0:00:07]} Be1+ {[%emt 0:00:
09]} 53. Kxe1 {[%emt 0:00:03]} Rxa7 {[%emt 0:00:02]} 54. a4 {[%emt 0:00:08]}
Rxa4 {[%emt 0:00:02]} 55. Kd1 {[%emt 0:00:01]} Ra2 {[%emt 0:00:01]} 56. Kc1 {
[%emt 0:00:01]} g5 {[%emt 0:00:02]} 57. Kb1 {[%emt 0:00:01]} Rh2 {[%emt 0:00:
01]} 58. Kc1 {[%emt 0:00:01]} f5 {[%emt 0:00:01]} 59. Kd1 {[%emt 0:00:01]} f4 {
[%emt 0:00:02]} 60. Ke1 {[%emt 0:00:02]} f3 {[%emt 0:00:01]} 61. Kf1 {[%emt 0:
00:01]} Ra2 {[%emt 0:00:02]} 62. Ke1 {[%emt 0:00:03]} f2+ {[%emt 0:00:05]} 63.
Kf1 {[%emt 0:00:02]} Kh5 {[%emt 0:00:01]} 64. Kg2 {[%emt 0:00:05]} Kg4 {
[%emt 0:00:02]} 65. Kf1 {[%emt 0:00:02]} b5 {[%emt 0:00:03]} 66. cxb5 {[%emt 0:
00:02]} Rb2 {[%emt 0:00:01]} 67. b6 {[%emt 0:00:02]} c4 {[%emt 0:00:00]} 68. b7
{[%emt 0:00:01]} c3 {[%emt 0:00:01]} 69. b8=Q {[%emt 0:00:02]} Rxb8 {[%emt 0:
00:02]} 70. Ke2 {[%emt 0:00:03]} c2 {[%emt 0:00:03]} 71. Kxf2 {[%emt 0:00:02]}
c1=Q {[%emt 0:00:01]} 72. Ke2 {[%emt 0:00:03]} Qc2+ {[%emt 0:00:03]} 73. Ke3 {
[%emt 0:00:02]} Rb3+ {[%emt 0:00:03]} 74. Kd4 {[%emt 0:00:02]} Qf2+ {[%emt 0:
00:05]} 75. Kc4 {[%emt 0:00:03]} Re3 {[%emt 0:00:02]} 76. Kd4 {[%emt 0:00:03]}
Qf4+ {[%emt 0:00:01]} 77. Kd5 {[%emt 0:00:05]} Re5+ {[%emt 0:00:01]} 78. Kd6 {
[%emt 0:00:02]} Qf6+ {[%emt 0:00:02]} 79. Kd7 {[%emt 0:00:01]} Re7+ {[%emt 0:
00:01]} 80. Kd8 {[%emt 0:00:01]} Qf8# {[%emt 0:00:01] OnlyHungryKiwi won by
checkmate} 0-1

[Event "Fast Chess"]
[Site "ChessKid.com"]
[Date "2020.04.09"]
[Round "2"]
[White "Georgiev, Maximilian"]
[Black "Li, Tobias"]
[Result "1/2-1/2"]
[ECO "C65"]
[WhiteElo "1406"]
[BlackElo "1248"]
[PlyCount "125"]
[EventDate "2020.??.??"]
[TimeControl "600"]
[WhiteClock "0:04:22"]
[BlackClock "0:06:31"]

1. e4 {[%emt 0:00:00]} e5 {[%emt 0:00:04]} 2. Nf3 {[%emt 0:00:01]} Nc6 {
[%emt 0:00:04]} 3. Bb5 {[%emt 0:00:01]} Bc5 {[%emt 0:00:06]} 4. Bxc6 {[%emt 0:
00:02]} dxc6 {[%emt 0:00:01]} 5. O-O {[%emt 0:00:02]} Nf6 {[%emt 0:00:13]} 6.
Nxe5 {[%emt 0:00:02]} Qd4 {[%emt 0:00:03]} 7. Nf3 {[%emt 0:00:08]} Qd7 {
[%emt 0:00:08]} 8. e5 {[%emt 0:00:04]} Ng4 {[%emt 0:00:08]} 9. Ng5 {[%emt 0:00:
05]} O-O {[%emt 0:00:04]} 10. Re1 {[%emt 0:00:05]} Qe7 {[%emt 0:00:04]} 11. Nf3
{[%emt 0:00:05]} h6 {[%emt 0:00:22]} 12. d4 {[%emt 0:00:04]} Bb6 {[%emt 0:00:
04]} 13. Nc3 {[%emt 0:00:02]} Be6 {[%emt 0:00:10]} 14. Bd2 {[%emt 0:00:03]} c5
{[%emt 0:00:06]} 15. d5 {[%emt 0:00:06]} Bd7 {[%emt 0:00:09]} 16. h3 {[%emt 0:
00:14]} Nxe5 {[%emt 0:00:12]} 17. Rxe5 {[%emt 0:00:04]} Qf6 {[%emt 0:00:04]}
18. Re1 {[%emt 0:00:07]} c6 {[%emt 0:00:19]} 19. dxc6 {[%emt 0:00:05]} Bxc6 {
[%emt 0:00:03]} 20. a4 {[%emt 0:00:11]} Bxf3 {[%emt 0:00:16]} 21. Qxf3 {
[%emt 0:00:06]} Qxf3 {[%emt 0:00:02]} 22. gxf3 {[%emt 0:00:01]} Rae8 {[%emt 0:
00:04]} 23. Rxe8 {[%emt 0:00:03]} Rxe8 {[%emt 0:00:01]} 24. a5 {[%emt 0:00:00]}
Bc7 {[%emt 0:00:03]} 25. Nd5 {[%emt 0:00:06]} Be5 {[%emt 0:00:10]} 26. Re1 {
[%emt 0:00:08]} Kf8 {[%emt 0:00:08]} 27. Nc7 {[%emt 0:00:03]} Bxc7 {[%emt 0:00:
04]} 28. Rxe8+ {[%emt 0:00:03]} Kxe8 {[%emt 0:00:04]} 29. b4 {[%emt 0:00:04]}
cxb4 {[%emt 0:00:08]} 30. Bxb4 {[%emt 0:00:01]} b6 {[%emt 0:00:04]} 31. axb6 {
[%emt 0:00:02]} Bxb6 {[%emt 0:00:01]} 32. c4 {[%emt 0:00:03]} a5 {[%emt 0:00:
04]} 33. c5 {[%emt 0:00:08]} axb4 {[%emt 0:00:08]} 34. cxb6 {[%emt 0:00:01]}
Kd7 {[%emt 0:00:07]} 35. Kf1 {[%emt 0:00:02]} b3 {[%emt 0:00:01]} 36. b7 {
[%emt 0:00:04]} Kc7 {[%emt 0:00:03]} 37. Ke2 {[%emt 0:00:01]} b2 {[%emt 0:00:
02]} 38. b8=Q+ {[%emt 0:00:03]} Kxb8 {[%emt 0:00:01]} 39. Ke3 {[%emt 0:00:03]}
b1=Q {[%emt 0:00:05]} 40. f4 {[%emt 0:00:04]} Qb3+ {[%emt 0:00:09]} 41. Ke4 {
[%emt 0:00:03]} Qxh3 {[%emt 0:00:02]} 42. f3 {[%emt 0:00:02]} g6 {[%emt 0:00:
03]} 43. Ke5 {[%emt 0:00:03]} Qf5+ {[%emt 0:00:49]} 44. Kd6 {[%emt 0:00:03]}
Qe6+ {[%emt 0:00:02]} 45. Kc5 {[%emt 0:00:02]} Kc7 {[%emt 0:00:01]} 46. Kd4 {
[%emt 0:00:04]} Kd6 {[%emt 0:00:02]} 47. Kd3 {[%emt 0:00:05]} Qb3+ {[%emt 0:00:
03]} 48. Kd4 {[%emt 0:00:03]} Qd5+ {[%emt 0:00:02]} 49. Kc3 {[%emt 0:00:02]}
Qxf3+ {[%emt 0:00:02]} 50. Kd4 {[%emt 0:00:01]} Qd5+ {[%emt 0:00:02]} 51. Ke3 {
[%emt 0:00:02]} Qa5 {[%emt 0:00:02]} 52. Ke4 {[%emt 0:00:03]} f5+ {[%emt 0:00:
02]} 53. Kf3 {[%emt 0:00:02]} Qa3+ {[%emt 0:00:02]} 54. Ke2 {[%emt 0:00:03]}
Kd5 {[%emt 0:00:05]} 55. Kd2 {[%emt 0:00:02]} Kd4 {[%emt 0:00:02]} 56. Ke2 {
[%emt 0:00:01]} Qe3+ {[%emt 0:00:01]} 57. Kf1 {[%emt 0:00:03]} Qe2+ {[%emt 0:
00:01]} 58. Kxe2 {[%emt 0:00:02]} g5 {[%emt 0:00:01]} 59. Kf3 {[%emt 0:00:03]}
gxf4 {[%emt 0:00:03]} 60. Kxf4 {[%emt 0:00:01]} Kd5 {[%emt 0:00:01]} 61. Kxf5 {
[%emt 0:00:01]} Kd4 {[%emt 0:00:01]} 62. Kg6 {[%emt 0:00:01]} h5 {[%emt 0:00:
01]} 63. Kxh5 {[%emt 0:00:00] Game drawn - insufficient material} 1/2-1/2

[Event "Fast Chess"]
[Site "ChessKid.com"]
[Date "2020.04.09"]
[Round "2"]
[White "Li, Patrick"]
[Black "Sasse, Gabriel"]
[Result "0-1"]
[ECO "C50"]
[WhiteElo "969"]
[BlackElo "1266"]
[PlyCount "44"]
[EventDate "2020.??.??"]
[TimeControl "600"]
[WhiteClock "0:08:55"]
[BlackClock "0:07:38"]

1. e4 {[%emt 0:00:00]} e5 {[%emt 0:00:00]} 2. Nf3 {[%emt 0:00:01]} Nc6 {
[%emt 0:00:01]} 3. Nc3 {[%emt 0:00:04]} Nf6 {[%emt 0:00:01]} 4. Bc4 {[%emt 0:
00:04]} h6 {[%emt 0:00:01]} 5. O-O {[%emt 0:00:14]} Bc5 {[%emt 0:00:03]} 6. h3
{[%emt 0:00:03]} O-O {[%emt 0:00:02]} 7. Bb5 {[%emt 0:00:09]} d6 {[%emt 0:00:
02]} 8. Bxc6 {[%emt 0:00:03]} bxc6 {[%emt 0:00:01]} 9. d3 {[%emt 0:00:14]} Ne8
{[%emt 0:00:01]} 10. Nh4 {[%emt 0:00:09]} Qxh4 {[%emt 0:00:04]} 11. g3 {
[%emt 0:00:03]} Qxh3 {[%emt 0:00:03]} 12. Na4 {[%emt 0:00:11]} Nf6 {[%emt 0:00:
05]} 13. Nxc5 {[%emt 0:00:04]} dxc5 {[%emt 0:00:01]} 14. Be3 {[%emt 0:00:17]}
c4 {[%emt 0:00:03]} 15. dxc4 {[%emt 0:00:03]} Nxe4 {[%emt 0:00:03]} 16. Bc5 {
[%emt 0:00:06]} Re8 {[%emt 0:00:03]} 17. Qf3 {[%emt 0:00:12]} Nd2 {[%emt 0:00:
03]} 18. Qe2 {[%emt 0:00:06]} Nxf1 {[%emt 0:00:06]} 19. Qxf1 {[%emt 0:00:01]}
Qg4 {[%emt 0:00:05]} 20. Qd1 {[%emt 0:00:06]} Qh3 {[%emt 0:00:08]} 21. Qf1 {
[%emt 0:00:03]} Qf5 {[%emt 0:00:04]} 22. Be3 {[%emt 0:00:09]} Qxc2 {[%emt 0:00:
05] LimeFarActor won by resignation} 0-1

[Event "Fast Chess"]
[Site "ChessKid.com"]
[Date "2020.04.09"]
[Round "3"]
[White "Li, Patrick"]
[Black "Georgiev, Maximilian"]
[Result "0-1"]
[ECO "C50"]
[WhiteElo "968"]
[BlackElo "1407"]
[PlyCount "46"]
[EventDate "2020.??.??"]
[TimeControl "600"]
[WhiteClock "0:08:33"]
[BlackClock "0:07:41"]

1. e4 {[%emt 0:00:03]} e5 {[%emt 0:00:01]} 2. Nf3 {[%emt 0:00:00]} Nc6 {
[%emt 0:00:01]} 3. Nc3 {[%emt 0:00:04]} Nf6 {[%emt 0:00:02]} 4. Bc4 {[%emt 0:
00:04]} h6 {[%emt 0:00:02]} 5. O-O {[%emt 0:00:03]} Bc5 {[%emt 0:00:06]} 6. Bb5
{[%emt 0:00:05]} d6 {[%emt 0:00:03]} 7. Bxc6+ {[%emt 0:00:04]} bxc6 {[%emt 0:
00:02]} 8. d3 {[%emt 0:00:06]} O-O {[%emt 0:00:04]} 9. h3 {[%emt 0:00:09]} Bb7
{[%emt 0:00:07]} 10. Be3 {[%emt 0:00:06]} Bxe3 {[%emt 0:00:03]} 11. fxe3 {
[%emt 0:00:11]} d5 {[%emt 0:00:01]} 12. Nxe5 {[%emt 0:00:09]} dxe4 {[%emt 0:00:
03]} 13. dxe4 {[%emt 0:00:03]} Qxd1 {[%emt 0:00:05]} 14. Rfxd1 {[%emt 0:00:04]}
Rfe8 {[%emt 0:00:03]} 15. Ng4 {[%emt 0:00:20]} Nxe4 {[%emt 0:00:04]} 16. Nxe4 {
[%emt 0:00:07]} Rxe4 {[%emt 0:00:02]} 17. Rd2 {[%emt 0:00:01]} c5 {[%emt 0:00:
06]} 18. Rad1 {[%emt 0:00:14]} Kh7 {[%emt 0:00:07]} 19. Rd8 {[%emt 0:00:11]}
Rxd8 {[%emt 0:00:04]} 20. Rxd8 {[%emt 0:00:04]} Rc4 {[%emt 0:00:08]} 21. Rd7 {
[%emt 0:00:05]} Rb4 {[%emt 0:00:04]} 22. Rxc7 {[%emt 0:00:02]} Rxb2 {[%emt 0:
00:02]} 23. Rxf7 {[%emt 0:00:04]} Bc8 {[%emt 0:00:07] TallSnazzyBall won -
game abandoned} 0-1

[Event "Fast Chess"]
[Site "ChessKid.com"]
[Date "2020.04.09"]
[Round "3"]
[White "Li, Tobias"]
[Black "Dai, Lana"]
[Result "1-0"]
[ECO "C55"]
[WhiteElo "1256"]
[BlackElo "1240"]
[PlyCount "77"]
[EventDate "2020.??.??"]
[TimeControl "600"]
[WhiteClock "0:00:38"]
[BlackClock "0:03:41"]

1. e4 {[%emt 0:00:00]} e5 {[%emt 0:00:02]} 2. Nf3 {[%emt 0:00:02]} Nc6 {
[%emt 0:00:07]} 3. Nc3 {[%emt 0:00:02]} Nf6 {[%emt 0:00:05]} 4. Bc4 {[%emt 0:
00:07]} Bc5 {[%emt 0:00:21]} 5. Ng5 {[%emt 0:00:04]} O-O {[%emt 0:00:13]} 6.
Nxf7 {[%emt 0:00:05]} Rxf7 {[%emt 0:00:04]} 7. Bxf7+ {[%emt 0:00:04]} Kxf7 {
[%emt 0:00:02]} 8. O-O {[%emt 0:00:04]} Kg8 {[%emt 0:00:20]} 9. d3 {[%emt 0:00:
04]} h6 {[%emt 0:00:03]} 10. Qf3 {[%emt 0:00:08]} Nd4 {[%emt 0:00:09]} 11. Qg3
{[%emt 0:00:10]} Nxc2 {[%emt 0:00:21]} 12. Bxh6 {[%emt 0:00:05]} Bf8 {[%emt 0:
00:13]} 13. Rac1 {[%emt 0:00:08]} Nh5 {[%emt 0:00:12]} 14. Qg4 {[%emt 0:00:19]}
Nd4 {[%emt 0:00:28]} 15. Qxh5 {[%emt 0:00:22]} gxh6 {[%emt 0:00:08]} 16. Qxe5 {
[%emt 0:00:03]} Nc6 {[%emt 0:00:17]} 17. Qg3+ {[%emt 0:00:09]} Bg7 {[%emt 0:00:
25]} 18. Nd5 {[%emt 0:00:14]} Nd4 {[%emt 0:00:12]} 19. Rfe1 {[%emt 0:00:11]} d6
{[%emt 0:00:26]} 20. Nf4 {[%emt 0:00:16]} Kh8 {[%emt 0:00:26]} 21. Nh5 {
[%emt 0:00:07]} Ne6 {[%emt 0:00:16]} 22. Nxg7 {[%emt 0:00:09]} Nxg7 {[%emt 0:
00:04]} 23. Qe3 {[%emt 0:00:41]} Kh7 {[%emt 0:00:18]} 24. h3 {[%emt 0:00:12]}
Be6 {[%emt 0:00:19]} 25. Rc3 {[%emt 0:00:21]} Bxa2 {[%emt 0:00:09]} 26. b3 {
[%emt 0:00:03]} Qd7 {[%emt 0:00:58]} 27. Ra1 {[%emt 0:00:07]} Bxb3 {[%emt 0:00:
07]} 28. Rxb3 {[%emt 0:00:02]} b6 {[%emt 0:00:10]} 29. Qf3 {[%emt 0:00:07]} Qe7
{[%emt 0:00:18]} 30. e5 {[%emt 0:00:11]} dxe5 {[%emt 0:00:09]} 31. Qxa8 {
[%emt 0:00:03]} Nf5 {[%emt 0:00:24]} 32. Qf3 {[%emt 0:00:09]} Nd4 {[%emt 0:00:
11]} 33. Qe4+ {[%emt 0:00:30]} Kh8 {[%emt 0:00:19]} 34. Rbb1 {[%emt 0:00:10]}
Nc2 {[%emt 0:00:11]} 35. Rxa7 {[%emt 0:00:13]} Nd4 {[%emt 0:00:09]} 36. Qg6 {
[%emt 0:00:03]} Ne2+ {[%emt 0:00:10]} 37. Kf1 {[%emt 0:00:26]} Qf8 {[%emt 0:00:
26]} 38. Rxc7 {[%emt 0:00:05]} Nd4 {[%emt 0:00:11]} 39. Qh7# {[%emt 0:00:04]
OnlyHungryKiwi won by checkmate} 1-0

[Event "Fast Chess"]
[Site "ChessKid.com"]
[Date "2020.04.14"]
[Round "1"]
[White "Li, Tobias"]
[Black "Sasse, Gabriel"]
[Result "0-1"]
[ECO "C57"]
[WhiteElo "1296"]
[BlackElo "1242"]
[PlyCount "124"]
[EventDate "2020.??.??"]
[TimeControl "300+50"]
[WhiteClock "0:07:18"]
[BlackClock "0:07:10"]

1. e4 {[%emt 0:00:47]} e5 {[%emt 0:00:46]} 2. Nf3 {[%emt 0:00:46]} Nc6 {
[%emt 0:00:46]} 3. Nc3 {[%emt 0:00:46]} Bc5 {[%emt 0:00:48]} 4. Bc4 {[%emt 0:
00:47]} Nf6 {[%emt 0:00:46]} 5. Ng5 {[%emt 0:00:47]} O-O {[%emt 0:00:48]} 6.
Nxf7 {[%emt 0:00:46]} Rxf7 {[%emt 0:00:46]} 7. Bxf7+ {[%emt 0:00:46]} Kxf7 {
[%emt 0:00:46]} 8. O-O {[%emt 0:00:46]} Kg8 {[%emt 0:00:49]} 9. d3 {[%emt 0:00:
47]} Ne8 {[%emt 0:00:49]} 10. h3 {[%emt 0:00:53]} d6 {[%emt 0:00:47]} 11. a3 {
[%emt 0:00:48]} Qf6 {[%emt 0:00:47]} 12. Bd2 {[%emt 0:00:48]} Qg6 {[%emt 0:00:
47]} 13. Qf3 {[%emt 0:00:55]} Nd4 {[%emt 0:00:51]} 14. Qg3 {[%emt 0:00:51]}
Qxg3 {[%emt 0:00:49]} 15. fxg3 {[%emt 0:00:46]} Nxc2+ {[%emt 0:00:47]} 16. Kh1
{[%emt 0:00:47]} Nxa1 {[%emt 0:00:47]} 17. Rxa1 {[%emt 0:00:48]} Bd4 {[%emt 0:
00:50]} 18. Nd5 {[%emt 0:00:48]} Be6 {[%emt 0:00:49]} 19. Bc3 {[%emt 0:00:51]}
Bxc3 {[%emt 0:00:48]} 20. bxc3 {[%emt 0:00:46]} Bxd5 {[%emt 0:00:47]} 21. exd5
{[%emt 0:00:47]} Nf6 {[%emt 0:00:46]} 22. c4 {[%emt 0:00:49]} c6 {[%emt 0:00:
50]} 23. dxc6 {[%emt 0:00:49]} bxc6 {[%emt 0:00:47]} 24. Rb1 {[%emt 0:00:46]}
Rf8 {[%emt 0:00:49]} 25. Rb7 {[%emt 0:00:47]} Nh5 {[%emt 0:00:47]} 26. Kh2 {
[%emt 0:00:49]} a6 {[%emt 0:00:48]} 27. Ra7 {[%emt 0:00:48]} d5 {[%emt 0:00:47]
} 28. cxd5 {[%emt 0:00:49]} cxd5 {[%emt 0:00:47]} 29. Rxa6 {[%emt 0:00:46]} e4
{[%emt 0:00:46]} 30. dxe4 {[%emt 0:00:48]} dxe4 {[%emt 0:00:47]} 31. Re6 {
[%emt 0:00:46]} Nf6 {[%emt 0:00:49]} 32. g4 {[%emt 0:00:52]} Kf7 {[%emt 0:00:
49]} 33. Re5 {[%emt 0:00:49]} Re8 {[%emt 0:00:52]} 34. Rxe8 {[%emt 0:01:00]}
Kxe8 {[%emt 0:00:47]} 35. Kg3 {[%emt 0:00:46]} Kd7 {[%emt 0:00:49]} 36. a4 {
[%emt 0:00:46]} Kd6 {[%emt 0:00:48]} 37. Kf4 {[%emt 0:00:46]} Kd5 {[%emt 0:00:
48]} 38. Ke3 {[%emt 0:00:48]} g6 {[%emt 0:00:50]} 39. g5 {[%emt 0:00:46]} Nd7 {
[%emt 0:00:49]} 40. a5 {[%emt 0:00:48]} Nc5 {[%emt 0:00:48]} 41. g4 {[%emt 0:
00:51]} Kc6 {[%emt 0:00:47]} 42. Kd4 {[%emt 0:00:49]} Kb5 {[%emt 0:00:48]} 43.
Ke3 {[%emt 0:00:50]} Kxa5 {[%emt 0:00:48]} 44. Kd4 {[%emt 0:00:46]} Kb5 {
[%emt 0:00:47]} 45. Ke3 {[%emt 0:00:47]} Kc4 {[%emt 0:00:46]} 46. Kd2 {[%emt 0:
00:49]} Kd4 {[%emt 0:00:48]} 47. Ke2 {[%emt 0:00:46]} e3 {[%emt 0:00:49]} 48.
Ke1 {[%emt 0:00:47]} Kd3 {[%emt 0:00:49]} 49. Kd1 {[%emt 0:00:47]} e2+ {
[%emt 0:00:51]} 50. Ke1 {[%emt 0:00:47]} Ne4 {[%emt 0:00:47]} 51. h4 {[%emt 0:
00:46]} Ng3 {[%emt 0:00:48]} 52. h5 {[%emt 0:00:48]} gxh5 {[%emt 0:00:47]} 53.
gxh5 {[%emt 0:00:47]} Nxh5 {[%emt 0:00:46]} 54. g6 {[%emt 0:00:46]} hxg6 {
[%emt 0:00:47]} 55. Kf2 {[%emt 0:00:47]} g5 {[%emt 0:00:47]} 56. Ke1 {[%emt 0:
00:48]} g4 {[%emt 0:00:47]} 57. Kf2 {[%emt 0:00:46]} Kd2 {[%emt 0:00:47]} 58.
Kg2 {[%emt 0:00:51]} e1=Q {[%emt 0:00:47]} 59. Kh2 {[%emt 0:00:47]} g3+ {
[%emt 0:00:51]} 60. Kh3 {[%emt 0:00:50]} Qh1+ {[%emt 0:00:48]} 61. Kg4 {
[%emt 0:00:46]} g2 {[%emt 0:00:48]} 62. Kf3 {[%emt 0:00:49]} g1=Q# {[%emt 0:00:
47] LimeFarActor won by checkmate} 0-1